bitfinex/quotes_ETHUSD_20210401
["timestamp","ask_amount","ask_price","bid_price","bid_amount"]
[1617290733377,7.73528,1940.4,1940.1,9.25511686]
[1617290734078,0.26909529,1940.7,1940.2,0.39]
[1617290734298,0.09406894,1940.9,1940.2,0.684]
[1617290734598,0.09406894,1940.9,1940.6,10.4737]
[1617290734802,15.1639,1941.1,1940.7,9.7]
[1617290734803,6.82696894,1941.0,1940.7,9.7]
[1617290735099,6.82696894,1941.0,1940.7,10.08]
[1617290735297,6.82696894,1941.0,1940.7,9.69]
[1617290735898,13.03337,1941.2,1940.6,10.0837]
[1617290736099,5.01,1940.8,1940.6,10.0837]
[1617290736403,4.96,1941.0,1940.6,10.4937]
[1617290736599,4.96,1941.0,1940.7,0.38]
[1617290736828,4.96,1941.0,1940.6,1.2]
[1617290737629,4.96,1941.0,1940.5,0.28]
[1617290738039,12.69302,1941.0,1940.5,0.28]
[1617290738330,0.41,1940.9,1940.5,0.11250745]
[1617290738532,0.39,1940.7,1940.3,0.09406894]
[1617290738932,0.39,1940.7,1940.2,1.29406894]
[1617290739135,0.4,1940.5,1940.2,1.29406894]
[1617290739333,5.01,1940.4,1940.2,1.2]
[1617290739750,4.01,1940.4,1940.1,0.73071686]
[1617290740451,4.14795,1940.6,1940.1,0.73071686]
[1617290740851,7.7365,1940.4,1940.2,0.39]
[1617290741051,15.64737665,1940.8,1940.3,0.39]
[1617290741252,5.01,1940.6,1940.3,0.39]
[1617290741950,15.92737665,1940.8,1940.3,0.39]
[1617290742210,5.61284665,1940.8,1940.3,0.39]
[1617290742609,7.03850331,1940.8,1940.2,0.14]
[1617290742801,5.99284665,1940.8,1940.2,0.14]
[1617290743202,5.01,1940.6,1940.2,0.14]
[1617290743603,12.74465,1940.6,1940.2,0.14]
[1617290744604,13.12465,1940.6,1940.1,1.93071686]
[1617290744804,4.01,1940.5,1940.1,0.73071686]
[1617290745007,5.03365897,1940.5,1940.1,0.73071686]
[1617290745311,4.01,1940.5,1940.1,0.73071686]
[1617290746011,7.73586,1940.3,1940.1,0.73071686]
[1617290746212,7.71,1940.2,1940.1,0.73071686]
[1617290747006,5.01,1940.2,1940.1,0.73071686]
[1617290747208,5.01,1940.2,1940.1,14.61071686]
[1617290747428,5.01,1940.2,1940.1,23.75071686]
[1617290747629,5.01,1940.3,1940.1,23.37071686]
[1617290747932,5.01,1940.3,1940.1,14.23071686]
[1617290748530,5.01,1940.3,1940.1,13.03071686]
[1617290748831,12.7456,1940.3,1940.1,0.73071686]
[1617290749030,13.1456,1940.3,1940.1,0.73071686]
[1617290749230,12.7456,1940.3,1940.1,0.73071686]
[1617290749732,11.7456,1940.3,1940.1,0.73071686]
[1617290749953,11.7456,1940.3,1940.1,7.97071686]
[1617290750254,11.7456,1940.3,1940.1,1.93071686]
[1617290751155,5.01,1940.2,1940.1,1.93071686]
[1617290751354,12.74626,1940.2,1940.1,1.93071686]
[1617290751954,12.74626,1940.2,1940.1,0.73071686]
[1617290753282,7.73626,1940.2,1940.1,0.73071686]
[1617290753486,10.31414,1940.5,1940.1,2.31071686]
[1617290753684,4.54673316,1940.8,1940.1,7.23071686]
[1617290754089,4.13673316,1940.8,1940.3,0.4]
[1617290754485,8.00309316,1940.8,1940.4,0.39]
[1617290754686,7.73401,1940.8,1940.4,0.39]
[1617290754883,6.73401,1940.8,1940.2,0.14]
[1617290755089,6.73401,1940.8,1940.3,0.4]
[1617290755523,5.01,1940.6,1940.3,0.4]
[1617290756224,5.01,1940.5,1940.3,0.4]
[1617290757026,5.01,1940.5,1940.1,6.85071686]
[1617290757226,8.87831,1940.4,1940.1,1.93071686]
[1617290757529,8.87831,1940.4,1940.1,0.73071686]
[1617290757530,9.78551,1940.4,1940.1,0.73071686]
[1617290758334,7.73661,1940.3,1940.1,0.73071686]
[1617290758530,4.16,1940.2,1940.1,0.73071686]
[1617290758729,9.17,1940.2,1940.1,0.73071686]
[1617290759229,5.01,1940.2,1940.1,0.73071686]
[1617290759730,11.747,1940.2,1940.1,0.73071686]
[1617290759930,11.747,1940.2,1940.1,8.43071686]
[1617290760752,11.747,1940.2,1940.1,0.73071686]
[1617290760956,11.747,1940.2,1940.1,5.78071686]
[1617290762053,11.747,1940.2,1940.1,0.73071686]
[1617290763984,11.747,1940.2,1940.1,7.68071686]
[1617290764389,11.747,1940.2,1940.1,7.53071686]
[1617290764885,10.747,1940.2,1940.1,7.53071686]
[1617290765706,10.747,1940.2,1940.1,0.58071686]
[1617290766211,11.137,1940.2,1940.1,0.58071686]
[1617290766606,10.747,1940.2,1940.1,0.58071686]
[1617290767205,7.737,1940.2,1940.1,0.58071686]
[1617290767411,1.00113346,1940.7,1940.1,0.96071686]
[1617290767607,2.12613346,1940.7,1940.1,6.5147858]
[1617290767805,1.00113346,1940.7,1940.1,6.42071686]
[1617290768433,5.01,1940.6,1940.1,0.96071686]
[1617290768632,5.01,1940.5,1940.1,0.96071686]
[1617290768837,5.01,1940.5,1940.1,0.58071686]
[1617290768838,5.42,1940.5,1940.1,0.58071686]
[1617290769232,5.01,1940.2,1940.1,0.58071686]
[1617290769438,5.01,1940.2,1940.1,7.74071686]
[1617290769741,10.31344,1940.6,1940.1,8.94071686]
[1617290769933,3.86892346,1940.7,1940.2,0.09406894]
[1617290770333,1.00113346,1940.7,1940.2,0.09406894]
[1617290770834,7.73454,1940.5,1940.2,0.4]
[1617290771080,5.01,1940.3,1940.2,0.4]
[1617290771279,5.01,1940.3,1940.1,8.94071686]
[1617290773686,5.01,1940.3,1940.1,7.74071686]
[1617290773899,5.01,1940.3,1940.1,0.58071686]
[1617290774087,5.01,1940.4,1940.1,0.58071686]
[1617290774483,5.4,1940.4,1940.1,0.58071686]
[1617290774786,12.14624,1940.2,1940.1,0.58071686]
[1617290774983,21.22284,1940.2,1940.1,0.58071686]
[1617290775185,22.9784938,1940.2,1940.1,0.58071686]
[1617290775586,21.22284,1940.2,1940.1,0.58071686]
[1617290778833,22.9784938,1940.2,1940.1,0.58071686]
[1617290779033,30.9784938,1940.2,1940.1,0.58071686]
[1617290779236,30.9784938,1940.2,1940.0,46.3466155]
[1617290779435,16.5352597,1940.1,1940.0,46.3466155]
[1617290779634,18.1893597,1940.1,1940.0,46.3466155]
[1617290779836,17.1893597,1940.1,1940.0,46.3466155]
[1617290780037,6.6641,1940.1,1940.0,46.3466155]
[1617290780232,10.27642366,1940.1,1940.0,46.3466155]
[1617290780433,9.03232366,1940.1,1940.0,46.3466155]
[1617290780638,20.62588336,1940.1,1940.0,46.3466155]
[1617290781334,28.36494336,1940.1,1940.0,46.3466155]
[1617290782662,24.7526197,1940.1,1940.0,46.3466155]
[1617290783764,25.77762323,1940.1,1940.0,46.3466155]
[1617290783965,7.73906,1940.1,1940.0,46.3466155]
[1617290784580,8.11906,1940.1,1940.0,46.3466155]
[1617290784782,7.73906,1940.1,1940.0,46.3466155]
[1617290785387,8.13906,1940.1,1940.0,46.3466155]
[1617290785985,18.6643197,1940.1,1940.0,46.3466155]
[1617290787732,7.73906,1940.1,1940.0,46.3466155]
[1617290788038,7.73906,1940.1,1940.0,54.4576155]
[1617290788936,6.73906,1940.1,1940.0,59.3776155]
[1617290790534,6.68906,1940.1,1940.0,59.3776155]
[1617290791234,6.68906,1940.1,1940.0,54.4576155]
[1617290794057,5.68906,1940.1,1940.0,62.7776155]
[1617290796289,5.68906,1940.1,1940.0,54.4576155]
[1617290796990,5.01,1940.1,1940.0,54.4576155]
[1617290797407,7.73596,1940.3,1940.1,2.60062643]
[1617290798707,5.01,1940.2,1940.1,2.60062643]
[1617290798909,4.01,1940.3,1940.1,11.18062643]
[1617290799932,4.01,1940.3,1940.1,8.58]
[1617290800547,4.01,1940.3,1940.1,11.17381488]
[1617290801033,4.01,1940.3,1940.1,8.58]
[1617290801236,5.01,1940.2,1940.1,8.58]
[1617290801734,10.31492,1940.4,1940.1,8.58]
[1617290802486,10.31492,1940.4,1940.0,46.3466155]
[1617290802487,7.73624,1940.2,1940.0,46.3466155]
[1617290802690,5.01,1940.1,1940.0,46.3466155]
[1617290803087,5.01,1940.2,1940.0,46.3466155]
[1617290803490,7.73645,1940.1,1940.0,51.5866155]
[1617290803989,6.73645,1940.1,1940.0,51.5866155]
[1617290804189,6.73645,1940.1,1940.0,46.3466155]
[1617290808820,5.73645,1940.1,1940.0,46.3466155]
[1617290809222,5.73645,1940.1,1940.0,53.2866155]
[1617290810125,5.73645,1940.1,1940.0,46.3466155]
[1617290813762,6.13645,1940.1,1940.0,46.3466155]
[1617290813968,10.75305,1940.1,1940.0,46.3466155]
[1617290816389,14.70772228,1940.1,1940.0,46.3466155]
[1617290816886,25.23298198,1940.1,1940.0,46.3466155]
[1617290818914,20.2783097,1940.1,1940.0,46.3466155]
[1617290819116,4.73645,1940.1,1940.0,46.3466155]
[1617290819715,4.73645,1940.1,1940.0,53.2866155]
[1617290819915,1.3487,1940.5,1940.0,61.3972155]
[1617290820116,1.07650316,1940.6,1940.2,0.39]
[1617290820316,7.73551,1940.5,1940.2,0.39]
[1617290820620,7.73551,1940.5,1940.1,9.76]
[1617290820836,8.01551,1940.5,1940.1,9.36]
[1617290821037,8.41551,1940.5,1940.1,9.22]
[1617290821340,5.01,1940.3,1940.1,9.22]
[1617290821537,12.74643,1940.2,1940.1,9.22]
[1617290822339,5.01,1940.1,1940.0,46.4866155]
[1617290822539,5.01,1940.1,1940.0,46.3466155]
[1617290822839,12.74694,1940.1,1940.0,46.3466155]
[1617290823868,12.14694,1940.1,1940.0,46.3466155]
[1617290824264,13.39154,1940.1,1940.0,46.3466155]
[1617290824664,23.27744,1940.1,1940.0,46.3466155]
[1617290825066,51.9875412,1940.1,1940.0,10.8242955]
[1617290825369,51.9875412,1940.1,1939.3,2.1049604]
[1617290825370,4.10371212,1939.4,1939.3,2.1049604]
[1617290825567,4.09471606,1939.4,1939.3,2.1049604]
[1617290825975,5.21331606,1939.4,1939.3,2.1049604]
[1617290826201,12.95496606,1939.4,1939.3,2.1049604]
[1617290826405,9.46225,1939.4,1939.3,2.1049604]
[1617290826599,13.18376606,1939.4,1939.3,2.1049604]
[1617290826899,13.07106606,1939.4,1939.3,2.1049604]
[1617290827099,11.83636606,1939.4,1939.3,2.1049604]
[1617290827299,12.86146606,1939.4,1939.3,2.1049604]
[1617290827599,32.38672576,1939.4,1939.3,2.1049604]
[1617290828200,39.63672576,1939.4,1939.3,2.1049604]
[1617290828717,47.63672576,1939.4,1939.3,2.1049604]
[1617290828917,48.60896372,1939.4,1939.3,2.1049604]
[1617290829120,30.0,1939.3,1939.1,1.0]
[1617290829325,44.12283922,1939.2,1939.1,1.0]
[1617290829622,65.91783688,1939.2,1939.1,1.0]
[1617290829818,67.16473688,1939.2,1938.3,1.2]
[1617290830023,3.87227,1938.7,1937.9,14.0683]
[1617290830222,3.87227,1938.7,1938.0,0.14]
[1617290830223,0.25,1938.4,1938.0,0.14]
[1617290830524,13.83945208,1938.2,1937.4,0.4]
[1617290831022,13.83945208,1938.2,1937.8,1.2]
[1617290831023,9.749,1938.2,1937.8,1.2]
[1617290831861,9.749,1938.2,1937.8,0.41]
[1617290831862,14.759,1938.2,1937.8,0.41]
[1617290832160,14.759,1938.2,1937.7,0.017312]
[1617290832760,15.80275731,1938.2,1937.7,0.017312]
[1617290832965,14.759,1938.2,1938.1,2.2]
[1617290833160,9.749,1938.2,1938.1,2.2]
[1617290833967,8.749,1938.2,1938.1,2.2]
[1617290835166,8.749,1938.2,1938.1,11.6]
[1617290835765,0.773,1938.3,1938.1,10.4]
[1617290835964,7.74332,1938.5,1938.1,10.4]
[1617290836170,8.02332,1938.5,1938.1,10.54]
[1617290836368,5.01,1938.3,1938.1,10.54]
[1617290836587,5.01,1938.3,1938.1,1.14]
[1617290837088,5.01,1938.3,1938.1,2.34]
[1617290837288,7.74253,1938.8,1938.1,2.34]
[1617290837490,37.91236796,1939.1,1938.5,0.4]
[1617290837491,0.26936536,1938.9,1938.5,0.4]
[1617290837790,0.26936536,1938.9,1938.8,24.26957702]
[1617290837997,1.07725792,1939.4,1938.9,1.2]
[1617290838190,12.90613,1939.5,1939.0,3.66957702]
[1617290838392,12.90613,1939.5,1939.1,1.2]
[1617290838594,0.38,1939.4,1939.0,3.61957702]
[1617290838892,0.38,1939.2,1939.0,3.61957702]
[1617290839343,3.14,1939.3,1939.0,3.61957702]
[1617290839541,8.14984,1939.4,1939.0,3.61957702]
[1617290839741,7.73984,1939.4,1939.0,3.61957702]
[1617290839943,6.73984,1939.4,1939.0,3.99957702]
[1617290840143,3.14,1939.3,1939.0,3.99957702]
[1617290840541,3.14,1939.3,1939.0,3.61957702]
[1617290840542,5.01,1939.1,1939.0,3.61957702]
[1617290841041,5.01,1939.1,1938.9,3.8377711]
[1617290841242,2.15,1939.3,1938.9,3.6977711]
[1617290841546,2.43,1939.3,1938.9,3.6977711]
[1617290841742,2.43,1939.3,1939.0,0.4]
[1617290841945,2.43,1939.3,1938.8,20.92379045]
[1617290841946,2.15,1939.3,1938.8,20.92379045]
[1617290842148,9.89031,1939.3,1938.9,0.4]
[1617290842346,7.74031,1939.3,1938.9,3.72057866]
[1617290843148,5.01,1939.1,1938.9,3.72057866]
[1617290843448,12.75087,1939.1,1938.8,0.32379045]
[1617290844285,12.75087,1939.1,1938.3,24.02822035]
[1617290844490,0.39,1938.9,1938.5,0.14]
[1617290844892,12.14087,1939.1,1938.4,0.14]
[1617290845095,12.52087,1939.1,1938.5,16.25]
[1617290845292,12.52087,1939.1,1938.4,0.55]
[1617290845493,0.4,1938.9,1938.4,0.14]
[1617290845793,0.39,1938.8,1938.4,0.14]
[1617290846398,8.22634894,1938.8,1938.4,0.14]
[1617290846600,7.83634894,1938.8,1938.4,0.14]
[1617290847095,3.46,1938.7,1938.4,0.14]
[1617290847394,3.46,1938.7,1938.4,2.14]
[1617290848203,11.20252,1938.7,1938.4,2.14]
[1617290848601,11.20252,1938.7,1938.4,2.0]
[1617290848898,11.48252,1938.7,1938.4,2.0]
[1617290849300,0.4,1938.6,1938.4,2.0]
[1617290849500,11.48252,1938.7,1938.4,2.0]
[1617290849717,11.86252,1938.7,1938.4,2.0]
[1617290850017,10.48252,1938.7,1938.4,2.0]
[1617290850223,10.20252,1938.7,1938.4,2.0]
[1617290851217,7.74345,1938.5,1938.4,2.0]
[1617290855070,6.74345,1938.5,1938.4,2.0]
[1617290855669,10.32459,1938.7,1938.4,2.0]
[1617290856269,10.71459,1938.7,1938.4,2.0]
[1617290856671,10.71459,1938.7,1938.4,10.0]
[1617290857270,7.74242,1938.6,1938.4,10.0]
[1617290859893,6.74242,1938.6,1938.4,10.0]
[1617290861515,7.14242,1938.6,1938.4,10.0]
[1617290861915,2.72,1938.5,1938.4,10.0]
[1617290862122,6.40626074,1938.5,1938.4,10.0]
[1617290862317,6.81626074,1938.5,1938.4,10.0]
[1617290863165,8.13016074,1938.5,1938.4,10.0]
[1617290863369,13.14016074,1938.5,1938.4,10.0]
[1617290863666,11.82626074,1938.5,1938.4,10.0]
[1617290863866,12.88436074,1938.5,1938.4,10.0]
[1617290864066,11.82626074,1938.5,1938.4,10.0]
[1617290864370,22.63629264,1938.5,1938.4,10.0]
[1617290864566,19.91629264,1938.5,1938.4,10.0]
[1617290864765,18.91549264,1938.5,1938.4,10.0]
[1617290864966,17.91549264,1938.5,1938.4,10.0]
[1617290865365,27.44075234,1938.5,1938.4,10.0]
[1617290865974,17.91549264,1938.5,1938.4,10.0]
[1617290866171,27.44075234,1938.5,1938.4,10.0]
[1617290866667,67.44075234,1938.5,1938.4,10.0]
[1617290867868,67.44075234,1938.5,1938.1,1.0]
[1617290867869,13.2,1938.4,1938.1,1.0]
[1617290868104,16.05,1938.2,1938.1,1.0]
[1617290868297,23.9161,1938.2,1938.1,1.0]
[1617290869098,31.66322,1938.2,1938.1,1.0]
[1617290869298,32.68561717,1938.2,1938.1,1.0]
[1617290869699,23.23561717,1938.2,1938.1,1.0]
[1617290869900,30.0,1938.1,1937.7,0.017312]
[1617290870101,22.19853,1937.8,1937.7,0.017312]
[1617290870301,51.6232897,1937.8,1937.7,0.017312]
[1617290870500,52.3698897,1937.8,1937.7,0.017312]
[1617290870724,42.3698897,1937.8,1937.7,0.017312]
[1617290870924,28.3198897,1937.8,1937.7,0.017312]
[1617290871123,28.58925675,1937.8,1937.7,0.017312]
[1617290871325,38.58925675,1937.8,1937.7,0.017312]
[1617290871726,34.28925675,1937.8,1937.7,0.017312]
[1617290871928,44.28925675,1937.8,1937.7,0.017312]
[1617290872729,38.58925675,1937.8,1937.7,0.017312]
[1617290872929,28.58925675,1937.8,1937.7,0.017312]
[1617290873131,39.78925675,1937.8,1937.7,2e-06]
[1617290873349,5.01,1937.6,1937.1,1.0]
[1617290873651,54.1414597,1937.4,1937.1,1.0]
[1617290874054,7.04,1937.3,1937.1,1.0]
[1617290874352,0.38,1936.6,1936.4,2.1049604]
[1617290874658,0.38,1936.6,1936.4,1.8355604]
[1617290874659,4.07240508,1936.5,1936.4,1.8355604]
[1617290874846,1.4703,1936.5,1936.4,1.8355604]
[1617290875047,14.58851294,1936.5,1936.4,1.8355604]
[1617290875251,25.01157264,1936.5,1936.4,1.8355604]
[1617290875449,21.3630597,1936.5,1936.4,1.8355604]
[1617290875747,6.8278,1936.5,1936.4,1.8355604]
[1617290875987,0.41,1936.5,1936.4,1.7855604]
[1617290876191,6.7063,1936.5,1936.4,1.7855604]
[1617290876491,22.16442725,1936.6,1936.4,1.7855604]
[1617290876695,12.63916755,1936.6,1936.4,1.7855604]
[1617290876892,4.88660755,1936.6,1936.4,1.7855604]
[1617290877091,0.09406894,1936.9,1936.4,2.1955604]
[1617290877296,0.98028144,1936.9,1936.5,3.64851294]
[1617290877491,0.8862125,1936.9,1936.5,3.64851294]
[1617290877693,0.00406894,1937.0,1936.6,0.4]
[1617290877990,0.00406894,1937.0,1936.7,3.64851294]
[1617290878196,0.00406894,1937.0,1936.7,4.03851294]
[1617290878798,0.00406894,1937.0,1936.8,0.41]
[1617290878998,0.00406894,1937.0,1936.8,8.0069]
[1617290879199,0.00406894,1937.0,1936.9,11.45]
[1617290879500,0.00406894,1937.0,1936.9,14.29]
[1617290879803,0.00406894,1937.0,1936.9,30.1]
[1617290880001,13.73538294,1937.7,1937.0,20.1]
[1617290880209,13.73538294,1937.7,1937.4,0.4]
[1617290880402,0.38,1937.8,1937.3,0.7078]
[1617290880607,0.681,1937.8,1937.3,0.7078]
[1617290880802,1.56919705,1937.8,1937.3,0.7078]
[1617290881318,1.18919705,1937.8,1937.3,0.7078]
[1617290881518,1.57919705,1937.8,1937.3,0.6818]
[1617290881718,7.74717,1937.6,1937.3,0.6818]
[1617290882018,7.74717,1937.6,1937.2,0.14]
[1617290882218,7.74717,1937.6,1937.0,0.41]
[1617290882219,8.43417,1937.6,1936.8,0.09406894]
[1617290882423,8.43417,1937.6,1936.9,0.14]
[1617290882424,0.392,1937.4,1936.9,0.14]
[1617290882919,7.74902,1937.2,1936.9,0.14]
[1617290883222,8.02902,1937.2,1936.6,0.41]
[1617290883419,0.38,1937.1,1936.6,0.14]
[1617290883620,0.28,1937.2,1936.6,0.54]
[1617290883841,0.68,1937.2,1936.6,0.14]
[1617290884742,5.69,1937.2,1936.6,0.14]
[1617290884946,5.16,1937.2,1936.6,0.14]
[1617290885242,7.75009,1936.9,1936.7,0.4]
[1617290885443,10.33345,1937.1,1936.8,6.29]
[1617290885642,0.88599552,1937.3,1936.8,6.29]
[1617290885845,0.88599552,1937.3,1936.8,6.57]
[1617290886045,3.64,1937.1,1936.8,6.57]
[1617290886246,0.88599552,1937.3,1937.0,0.4]
[1617290886670,7.74922,1937.1,1936.8,0.28]
[1617290887772,7.74922,1937.1,1936.7,0.4]
[1617290887971,7.74922,1937.1,1936.6,0.39]
[1617290887972,8.12922,1937.1,1936.6,0.39]
[1617290888472,8.12922,1937.1,1936.4,1.7855604]
[1617290888473,0.4,1936.9,1936.4,1.7855604]
[1617290888677,3.59352976,1936.8,1936.4,1.7855604]
[1617290888905,3.59352976,1936.8,1936.4,2.1855604]
[1617290888906,5.01,1936.8,1936.4,2.1855604]
[1617290889105,6.6234,1936.9,1936.4,2.1855604]
[1617290889705,6.6234,1936.9,1936.4,1.7855604]
[1617290889706,7.75104,1936.7,1936.4,1.7855604]
[1617290889915,10.73472,1936.8,1936.4,1.7855604]
[1617290889916,2.76,1936.6,1936.4,1.7855604]
[1617290890118,3.97352976,1936.5,1936.4,1.7855604]
[1617290890406,8.1105,1936.5,1936.4,1.7855604]
[1617290891211,15.86249,1936.5,1936.4,1.7855604]
[1617290891609,21.7575151,1936.5,1936.4,1.7855604]
[1617290892249,16.7475151,1936.5,1936.4,1.7855604]
[1617290892651,16.7475151,1936.5,1936.4,2.1855604]
[1617290892851,0.8850251,1936.5,1936.4,2.1855604]
[1617290893050,6.01,1937.0,1936.4,2.1855604]
[1617290893250,22.0573597,1937.1,1936.5,0.39]
[1617290893454,2.08240134,1937.4,1936.9,0.38]
[1617290893455,13.7728,1937.3,1936.9,0.38]
[1617290893658,23.2980597,1937.3,1936.9,0.28]
[1617290893849,9.5252597,1937.3,1936.9,0.28]
[1617290894049,0.01125993,1937.4,1936.9,0.28]
[1617290894250,4.88,1937.5,1937.1,0.4]
[1617290894450,21.75065963,1937.6,1937.1,0.4]
[1617290894651,21.75065963,1937.6,1937.1,0.68]
[1617290894652,7.7478,1937.4,1937.1,0.68]
[1617290894852,8.5252597,1937.4,1937.3,0.39]
[1617290895051,32.6497297,1937.8,1937.3,0.39]
[1617290895256,5.78,1937.7,1937.3,0.39]
[1617290895449,5.78,1937.7,1937.1,0.28]
[1617290895651,5.78,1937.7,1937.2,0.4]
[1617290895954,7.74752,1937.5,1937.2,0.4]
[1617290896455,0.41,1937.3,1936.7,4.26356]
[1617290896751,0.41,1937.3,1936.8,0.28]
[1617290897380,0.41,1937.3,1936.7,0.39]
[1617290897381,3.9760653,1937.0,1936.7,0.39]
[1617290897572,3.9760653,1937.0,1936.4,1.7855604]
[1617290897573,0.39,1936.6,1936.4,1.7855604]
[1617290898972,6.75198,1936.5,1936.4,1.7855604]
[1617290899171,10.33597,1936.6,1936.4,2.1755604]
[1617290899370,0.88581539,1936.9,1936.8,8.93]
[1617290899600,12.91949,1937.4,1936.8,8.93]
[1617290899601,22.72797999,1937.4,1936.8,8.93]
[1617290899800,21.50947999,1937.4,1936.8,9.21]
[1617290900002,7.74768,1937.3,1936.8,9.21]
[1617290901102,8.13768,1937.3,1936.8,9.21]
[1617290901300,4.44,1937.2,1936.8,0.38]
[1617290901501,4.44,1937.2,1936.7,0.28]
[1617290901902,21.5847497,1937.4,1936.7,0.28]
[1617290902104,7.74951,1937.1,1936.7,0.28]
[1617290902321,7.74951,1937.1,1936.7,0.68]
[1617290902527,7.74951,1937.1,1937.0,11.11]
[1617290902726,7.74951,1937.1,1937.0,0.41]
[1617290902925,7.74951,1937.1,1936.7,0.28]
[1617290904022,7.13951,1937.1,1936.7,0.28]
[1617290904226,3.95038318,1937.0,1936.4,1.7855604]
[1617290904425,0.4,1936.9,1936.4,1.7855604]
[1617290904623,3.96038318,1936.9,1936.4,1.7855604]
[1617290904847,7.75045,1936.7,1936.4,1.7855604]
[1617290906049,7.75045,1936.7,1936.4,2.1855604]
[1617290906449,7.75045,1936.7,1936.4,3.3855604]
[1617290906651,7.75045,1936.7,1936.4,2.1855604]
[1617290907348,7.75045,1936.7,1936.4,1.7855604]
[1617290909107,6.75045,1936.7,1936.4,1.7855604]
[1617290909408,7.14045,1936.7,1936.4,1.7355604]
[1617290909708,0.39,1936.6,1936.4,1.7355604]
[1617290910007,4.43862374,1936.8,1936.4,1.7355604]
[1617290910209,0.41,1936.7,1936.4,1.7355604]
[1617290910409,10.33611,1936.6,1936.4,1.7355604]
[1617290910616,3.62,1936.5,1936.4,1.7355604]
[1617290912111,13.95562,1936.5,1936.4,1.7355604]
[1617290913819,10.33562,1936.5,1936.4,1.7355604]
[1617290914020,9.33562,1936.5,1936.4,1.7355604]
[1617290914420,9.73562,1936.5,1936.4,1.7355604]
[1617290914820,9.33562,1936.5,1936.4,1.7355604]
[1617290917145,9.18562,1936.5,1936.4,1.7355604]
[1617290917748,10.33611,1936.7,1936.4,2.1455604]
[1617290917987,1.01176358,1936.8,1936.4,2.1455604]
[1617290917988,1.01176358,1936.8,1936.5,0.38]
[1617290918972,0.12574058,1936.8,1936.5,2.40123686]
[1617290919173,1.6872,1937.0,1936.9,10.04]
[1617290919174,8.17224058,1937.0,1936.9,10.04]
[1617290919376,1.15248819,1937.2,1937.0,0.4]
[1617290919673,0.88304847,1937.2,1937.0,0.3]
[1617290919873,8.5252597,1937.4,1936.9,13.24901301]
[1617290920074,0.26941019,1937.5,1937.1,0.39]
[1617290920274,0.26941019,1937.5,1937.0,2.4048548]
[1617290920275,7.74736,1937.5,1937.0,2.4048548]
[1617290920472,10.78736,1937.5,1936.9,10.03]
[1617290920706,8.5252597,1937.4,1936.9,10.03]
[1617290920999,2.94,1937.3,1936.9,10.03]
[1617290921398,0.4,1937.5,1936.9,10.03]
[1617290921598,10.33115,1937.3,1936.9,10.03]
[1617290923110,7.74838,1937.1,1936.9,10.03]
[1617290923524,7.74838,1937.1,1936.9,0.38]
[1617290924126,6.74838,1937.1,1936.9,0.38]
[1617290924425,6.74838,1937.1,1936.8,0.28]
[1617290924426,6.74838,1937.1,1937.0,0.38]
[1617290925854,7.74786,1937.4,1937.0,0.38]
[1617290926157,7.74786,1937.4,1937.3,0.38]
[1617290926850,7.74786,1937.4,1937.2,0.39]
[1617290927851,7.74786,1937.4,1937.0,0.41]
[1617290929085,6.74786,1937.4,1937.2,0.4]
[1617290932904,6.74786,1937.4,1936.9,0.38]
[1617290933406,7.13786,1937.4,1936.9,0.38]
[1617290933733,0.4,1937.3,1936.8,0.28]
[1617290934234,19.73449247,1937.6,1937.0,0.39]
[1617290934235,2.03192277,1937.6,1937.0,0.39]
[1617290934534,10.33195,1937.2,1937.1,0.41]
[1617290935434,7.74757,1937.3,1937.1,3.90414034]
[1617290935736,10.33045,1937.5,1937.2,10.26]
[1617290935936,12.91549,1937.9,1937.3,3.49414034]
[1617290936137,12.91549,1937.9,1937.5,0.39]
[1617290936553,12.91355,1938.1,1937.8,3.49414034]
[1617290936554,7.74478,1938.0,1937.8,3.49414034]
[1617290936756,0.04009372,1938.1,1938.0,0.39]
[1617290936956,13.29047,1938.6,1938.0,14.74]
[1617290936957,14.55657,1938.6,1938.0,14.74]
[1617290937157,12.91047,1938.6,1938.2,0.41]
[1617290937662,7.74274,1938.6,1938.2,0.41]
[1617290939076,6.74274,1938.6,1938.2,0.41]
[1617290940583,6.74274,1938.6,1938.1,0.67]
[1617290942902,6.74274,1938.6,1938.2,0.39]
[1617290944109,2.2907,1938.9,1938.2,0.39]
[1617290944323,2.2907,1938.9,1938.1,3.76668828]
[1617290944324,2.7007,1938.9,1938.3,3.89668828]
[1617290944525,2.7007,1938.9,1938.3,0.41]
[1617290944725,2.7007,1938.9,1938.4,0.38]
[1617290944924,2.2907,1938.9,1938.4,0.66]
[1617290945130,1.0,1938.9,1938.4,0.66]
[1617290945626,1.0,1938.9,1938.5,0.38]
[1617290945825,1.0,1938.9,1938.8,19.09]
[1617290946031,1.0,1938.9,1938.8,21.56]
[1617290946228,1.0,1938.9,1938.8,21.03918171]
[1617290947150,1.0,1938.9,1938.6,0.4]
[1617290947549,1.0,1938.9,1938.8,13.0]
[1617290947751,1.0,1938.9,1938.8,12.6]
[1617290948048,7.74089,1939.1,1938.8,12.6]
[1617290948250,7.74089,1939.1,1938.5,0.28]
[1617290948251,7.74089,1939.1,1938.9,5.85]
[1617290948451,7.74089,1939.1,1938.9,2.76]
[1617290948652,7.74089,1939.1,1938.5,0.28]
[1617290948851,8.12089,1939.1,1938.5,0.67]